Workbook

Sheet 资金计划
A1: 大安市2025年衔接资金分配情况统计表
A2: 序号 | B2: 项目名称 | C2: 建设性质 | D2: 实施地点 | E2: 时间进度 | G2: 责任单位 | H2: 建设内容及规模 | I2: 调整后财政衔接资金（万元） | M2: 资金文号
E3: 计划开工 时间 | F3: 计划完工 时间 | I3: 小计 | J3: 中央资金 | K3: 省级资金 | L3: 本级资金
A4: 合 计 | I4: =I5+I29+I41 -> 17764.000000 | J4: =J5+J29+J41 -> 10629 | K4: =K5+K29+K41 -> 5520 | L4: =L5+L29+L41 -> 1615
A5: 一、产业项目 | I5: =SUM(I6:I28) -> 12800.05959 | J5: =SUM(J6:J28) -> 7047.709587 | K5: =SUM(K6:K28) -> 4229 | L5: =SUM(L6:L28) -> 1523.35
A6: 1 | B6: 大安市2025年庭院经济补贴项目 | C6: 新建 | D6: 18个乡镇 | E6: 2025-05-01 | F6: 2025-12-01 | G6: 农业农村局 | H6: 在全市18个乡镇发展庭院经济种植和养殖。 | I6: =J6+K6+L6 -> 1985.278756 | J6: 1985.278756 | M6: 吉财村指〔2024〕913号巩固成果1985.278756万
A7: 2 | B7: 大安市2025年小额贷款贴息项目 | C7: 新建 | D7: 18个乡镇 | E7: 2025-05-01 | F7: 2025-12-01 | G7: 农业农村局 | H7: 为符合条件的小额贷款户发放贷款贴息。 | I7: =J7+K7+L7 -> 243.581616 | L7: 243.581616 | M7: 本级资金243.941616万
A8: 3 | B8: 大安市年产5000万穗黏玉米加工建设项目 | C8: 续建 | D8: 安广镇 | E8: 2025-01-01 | F8: 2025-10-01 | G8: 农业农村局 | H8: 车间防火墙1500平方米,消防管线1750米、消防栓51套、排烟风机9台、排烟管道260米、消防联动柜1套;电气工程电线电缆23000米，配电柜12台；玉米提升机、枯萎灌、扒皮机一套等。 | I8: 563 | J8: 563 | M8: 吉财村指〔2024〕913号巩固成果563万
A9: 4 | B9: 大安市国有林总场文冠果基地建设项目 | C9: 续建 | D9: 大安市国有林总场 | E9: 2025-03-01 | F9: 2025-12-01 | G9: 林草局 | H9: 购置卷盘式喷灌机及行架10套，拖拉机1台，重耙1套，旋耕机1套，行耙1套，生产用车2台，喷药无人机2台，移动管护房2栋,管护围栏2366米等。 | I9: 226 | J9: 226 | M9: 吉财村指〔2024〕913号国有林场181万；吉财村指〔2025〕176号国有林场45万
A10: 5 | B10: 新艾里蒙古族乡暖棚建设项目 | C10: 新建 | D10: 富兴村 | E10: 2025-03-01 | F10: 2025-10-01 | G10: 新艾里乡 | H10: 新建暖棚2栋，1500平方米。 | I10: 56.9356 | J10: 56.9356 | M10: 吉财村指〔2024〕913号少数民族56.9356万
A11: 6 | B11: 大安市有机硅系列功能肥料项目 | C11: 新建 | D11: 大安市融合产业园区 | E11: 2025-08-01 | F11: 2025-12-01 | G11: 农业农村局 | H11: 1.建设挤压式复合肥料生产线，主要购置混料机2台、挤压造粒机44台、提升机2台、输送机24台、筛分机4台、码垛机2台（套）、除尘器4台、喷淋塔2台，及其他附属设备等。 2.建设新型有机肥生产线，主要购置输送机28台、造粒机2台、冷却机2台、回转筛6台、码垛机2台、除尘器4套、洗涤塔2台，及其他附属设备等。 | I11: 1760 | J11: 940 | K11: 820 | M11: 吉财村指〔2024〕913号巩固成果940万；吉财村指〔2024〕841号巩固成果820万
A12: 7 | B12: 乐胜乡长新村大棚建设项目 | C12: 新建 | D12: 长新村 | E12: 2025-03-01 | F12: 2025-12-01 | G12: 乐胜乡 | H12: 建设大棚21栋，包括1栋暖棚1000平方米；20栋冷棚，每栋1000平方米等。 | I12: 76.5761 | K12: 76.5761 | M12: 吉财村指〔2024〕841号巩固成果76.5761万
A13: 8 | B13: 乐胜乡永安村大棚建设项目 | C13: 新建 | D13: 永安村 | E13: 2025-03-01 | F13: 2025-12-01 | G13: 乐胜乡 | H13: 建设大棚10栋，包括2栋暖棚，每栋1000平方米；8栋冷棚，每栋1000平方米。农田井1眼等。 | I13: 76.868 | K13: 76.868 | M13: 吉财村指〔2024〕841号巩固成果76.868万
A14: 9 | B14: 叉干镇先锋村粮食储存库房建设项目 | C14: 新建 | D14: 先锋村 | E14: 2025-03-01 | F14: 2025-12-01 | G14: 叉干镇 | H14: 建设粮食储存库房1个，面积1000平方米等。 | I14: 73.0921 | K14: 73.0921 | M14: 吉财村指〔2024〕841号巩固成果73.0921万
A15: 10 | B15: 大岗子镇杏树川村大棚建设项目 | C15: 新建 | D15: 杏树川村 | E15: 2025-03-01 | F15: 2025-12-01 | G15: 大岗子镇 | H15: 建设大棚20栋，每栋1500平方米。购置大棚配套喷灌设备20套等。 | I15: 79.39 | L15: 79.39 | M15: 本级资金79.39万
A16: 11 | B16: 舍力镇洮东村购置农机具项目 | C16: 新建 | D16: 洮东村 | E16: 2025-03-01 | F16: 2025-12-01 | G16: 舍力镇 | H16: 购置玉米收割机1台，大马力拖拉机1台，旋耕机1台，打包机1台等。 | I16: 74.7 | K16: 74.7 | M16: 吉财村指〔2024〕841号巩固成果74.7万
A17: 12 | B17: 舍力镇民发村购置喷灌机项目 | C17: 新建 | D17: 民发村 | E17: 2025-03-01 | F17: 2025-12-01 | G17: 舍力镇 | H17: 购置喷灌机31台及配套设备 | I17: 80 | K17: 80 | M17: 吉财村指〔2024〕841号巩固成果80万
A18: 13 | B18: 舍力镇民众村购置农机具项目 | C18: 新建 | D18: 民众村 | E18: 2025-03-01 | F18: 2025-12-01 | G18: 舍力镇 | H18: 购置大马力拖拉机1台，灭茬机1台，无人机1台，玉米收割机1台，条耕机1台，免耕机1台，平地仪1台等。 | I18: 79.7 | K18: 79.7 | M18: 吉财村指〔2024〕841号巩固成果79.7万
A19: 14 | B19: 烧锅镇乡新兴村秸秆加工厂建设项目 | C19: 新建 | D19: 新兴村 | E19: 2025-03-01 | F19: 2025-12-01 | G19: 烧锅镇乡 | H19: 建设秸秆加工厂房1000平方米。购置秸秆加工配套设备2套，包括揉碎机1台，粉碎机1台，打包机1台，筛选机1台；颗粒机1台，粉碎机1台，输送机1台等。 | I19: 81.05 | K19: 81.05 | M19: 吉财村指〔2024〕841号巩固成果81.05万
A20: 15 | B20: 大安市30万只肉羊屠宰及深加工项目 | C20: 新建 | D20: 安广镇工业园区 | E20: 2025-03-01 | F20: 2025-12-01 | G20: 安广镇 | H20: 建设生产加工区20000平方米，其中建筑面积5920平方米。包括屠宰分割车间2560平方米，自动化肉羊屠宰生产线1条，自动化分割线2条；羊副产品深加工车间1280平方米，羊副产品加工生产线1条，多功能设施1280平方米，待宰圈舍800平方米；冷库等。 | I20: 1206.366194 | J20: 3.516194 | K20: 54.55 | L20: 1148.3 | M20: 吉财村指〔2024〕913号巩固成果3.516194万；吉财村指〔2024〕841号巩固成果54.55万；本级1148.3万
A21: 16 | B21: 联合乡育苗基地建设项目 | C21: 新建 | D21: 五间房村 | E21: 2025-03-01 | F21: 2025-12-01 | G21: 联合乡 | H21: 温室大棚13栋面积19700平方米（监控物联系统），大棚连廊2200平方米，护栏1400米，田间路530米，深水井1眼，150KVA变压器一台等。 | I21: 1149.003825 | J21: 1149.003825 | M21: 吉财村指〔2024〕913号巩固成果1149.003825万
A22: 17 | B22: 两家子镇同心村白鹅养殖场建设项目 | C22: 新建 | D22: 同心村 | E22: 2025-03-01 | F22: 2025-12-01 | G22: 两家子镇 | H22: 肉鹅养殖棚舍2栋，鹅苗脱温棚舍1栋，库房防疫车间用房，锅炉、配电设施及场地硬化等。 | I22: 410 | K22: 410 | M22: 吉财村指〔2024〕841号巩固成果410万
A23: 18 | B23: 叉干镇三八村养殖小区养殖鹅棚建设项目 | C23: 新建 | D23: 三八村 | E23: 2025-03-01 | F23: 2025-12-01 | G23: 叉干镇 | H23: 以镀锌螺旋地桩为基础，建设镀锌椭圆管架鹅棚16栋，长度为150米、跨度为12米，顶高度3.5米，棚顶采用PO太阳膜；看护房、冷库、水电及配套设施等。 | I23: 306.626613 | K23: 306.626613 | M23: 吉财村指〔2025〕40号巩固成果306.626613万
A24: 19 | B24: 四棵树乡白菜腌制标准化窖池建设项目 | C24: 新建 | D24: 德昌村 | E24: 2025-01-01 | F24: 2025-12-01 | G24: 四棵树乡 | H24: 防雨雪钢棚2470平方米，标准化窖池17个等。 | I24: 320 | K24: 320 | M24: 吉财村指〔2024〕841号巩固成果320万
A25: 20 | B25: 舍力镇花生米等级筛选项目 | C25: 新建 | D25: 新华村 | E25: 2025-03-01 | F25: 2025-12-01 | G25: 舍力镇 | H25: 购置花生米色选机、花生米分级筛选机等21台（套）等。 | I25: 164.8 | K25: 164.8 | M25: 吉财村指〔2024〕841号巩固成果164.8万
A26: 21 | B26: 乐胜乡太平村酱菜厂建设项目 | C26: 新建 | D26: 太平村 | E26: 2025-03-01 | F26: 2025-12-01 | G26: 乐胜乡 | H26: 建设生产加工区2000平方米，腌制窖池面积2700平方米，自动化生产线一条，消防配套设施一套，污水处理设备一套，生产路面硬化1200平方米，生产附属设施等。 | I26: 810 | K26: 810 | M26: 吉财村指〔2025〕40号巩固成果810万
A27: 22 | B27: 大安市国家农村产业融合发展示范园禽肉扩能项目 | C27: 续建 | D27: 两家子镇同庆村 | E27: 2025-05-01 | F27: 2025-12-01 | G27: 两家子镇同庆村 | H27: 购置单冻机制冷系统1套、速冻库制冷系统1套、高架库制冷系统1套等设备。 | I27: 2587.507783 | J27: 2123.975212 | K27: 451.037187 | L27: 12.495384 | M27: 吉财村指〔2024〕913号巩固成果2123.975212万；吉财村指〔2024〕841号巩固成果407.6638万;吉财村指〔2025〕40号巩固成果43.373387万；本级12.495384万
A28: 23 | B28: 红岗子乡南岗村典型村创建(棚膜产业)项目 | C28: 续建 | D28: 红岗子乡南岗村 | E28: 2025-07-01 | F28: 2025-12-01 | G28: 红岗子乡南岗村 | H28: 建设双层五防温室5栋，长季桥棚2栋，超级冷棚1栋。 | I28: 389.583 | K28: 350 | L28: 39.583 | M28: 吉财村指〔2024〕841号巩固成果350万；本级39.583万
A29: 二、基础设施项目 | I29: =SUM(I30:I40) -> 4872.290413 | J29: =SUM(J30:J40) -> 3581.290413 | K29: =SUM(K30:K40) -> 1291 | L29: =SUM(L30:L40) -> 0
A30: 24 | B30: 新艾里蒙古族乡道路两旁基础设施建设项目 | C30: 新建 | D30: 富兴村 | E30: 2025-04-01 | F30: 2025-11-01 | G30: 新艾里乡 | H30: 道路两旁铺设红砖约3600平方米。 | I30: =J30+K30+L30 -> 21.82972 | J30: 21.82972 | M30: 吉财村指〔2024〕913号少数民族21.82972万
A31: 25 | B31: 海坨乡储粪棚建设项目 | C31: 新建 | D31: 前进村 黑山村 榆树村 胡家村 三业村 | E31: 2025-01-01 | F31: 2025-10-01 | G31: 海坨乡 | H31: 修建储粪棚7个，每个200平方米。 | I31: =J31+K31+L31 -> 143.56385 | J31: 143.56385 | M31: 吉财村指〔2024〕913号巩固成果142.33755万
A32: 26 | B32: 四棵树乡储粪棚建设项目 | C32: 新建 | D32: 三合村 大洼村 腰围子村 建设村 新立村 大榆树村 | E32: 2025-01-01 | F32: 2025-10-01 | G32: 四棵树乡 | H32: 修建储粪棚7个，每个200平方米。 | I32: 143.9391 | J32: 143.9391 | M32: 吉财村指〔2024〕913号巩固成果143.9391万
A33: 27 | B33: 大安市2025年农村饮水安全巩固提升工程 | C33: 新建 | D33: 两家子镇 叉干镇等乡镇 | E33: 2025-01-01 | F33: 2025-12-01 | G33: 水利局 | H33: 农村供水管网并网30000延长米，安装智能水表14000块等。 | I33: 1788 | J33: 497 | K33: 1291 | M33: 吉财村指〔2024〕913号巩固成果497万；吉财村指〔2024〕841号巩固成果1281万；吉财村指〔2025〕40号巩固成果10万
A34: 28 | B34: 大安市2025年农村饮水安全巩固提升工程（第二批） | C34: 新建 | D34: 舍力镇、两家子镇、四棵树乡等乡镇 | E34: 2025-08-01 | F34: 2025-12-01 | G34: 水利局 | H34: 更改老旧供水管网4万延长米，自来水新入户265户等。 | I34: 569.28098 | J34: 569.28098 | M34: 吉财村指〔2024〕913号巩固成果309.28098万；吉财村指〔2025〕176号巩固成果260万
A35: 29 | B35: 大赉乡2025年基础设施建设项目 | C35: 新建 | D35: 城南村 长白村 | E35: 2025-03-01 | F35: 2025-11-01 | G35: 大赉乡 | H35: 大赉乡城南村水泥路“白改黑”1.55公里、长白村水泥路“白改黑”1.1公里等。 | I35: 135.7225 | J35: 135.7225 | M35: 吉财村指〔2024〕913号巩固成果135.7225万
A36: 30 | B36: 丰收镇丰收村2025年基础设施建设项目 | C36: 新建 | D36: 丰收村 | E36: 2025-03-01 | F36: 2025-11-01 | G36: 丰收镇 | H36: 排水(盖板）3862延长米，新建水泥路2.5公里，“白改黑”1公里，路边硬化16590平方米，路灯150盏等。 | I36: 525.1438 | J36: 525.1438 | M36: 吉财村指〔2024〕913号巩固成果525.1438万
A37: 31 | B37: 海坨乡于亮子村2025年基础设施建设项目 | C37: 新建 | D37: 于亮子村 | E37: 2025-03-01 | F37: 2025-11-01 | G37: 海坨乡 | H37: 新建水泥路2公里，水泥路“白改黑”6.8公里，排水沟1500延长米等。 | I37: 413.7261 | J37: 413.7261 | M37: 吉财村指〔2024〕913号巩固成果413.7261万
A38: 32 | B38: 舍力镇民众村2025年基础设施建设项目 | C38: 新建 | D38: 民众村 | E38: 2025-03-01 | F38: 2025-11-01 | G38: 舍力镇 | H38: 白改黑7.333公里（31971平方米）；新建混凝土路0.88公里（3290平方米）。 | I38: 318.7693 | J38: 318.7693 | M38: 吉财村指〔2024〕913号巩固成果318.7693万
A39: 33 | B39: 安广镇2025年基础设施建设项目 | C39: 新建 | D39: 向前村 爱国村 胜利村 | E39: 2025-03-01 | F39: 2025-11-01 | G39: 安广镇 | H39: 向前村：水泥路4.5宽6.44公里，水泥路3米宽0.2公里,水泥路4米宽0.4公里，路边硬化5080平方米，安装路灯86盏等。爱国村：柏油路4.5宽0.65公里，路灯50盏等。胜利村：水泥路3.5米宽0.8公里。 | I39: 471.4278 | J39: 471.4278 | M39: 吉财村指〔2024〕913号巩固成果471.4278万
A40: 34 | B40: 乐胜乡同生村基础设施建设项目 | C40: 新建 | D40: 同生村 | E40: 2025-05-01 | F40: 2025-11-01 | G40: 乐胜乡 | H40: 排水沟（盖板）6000延长米，水泥巷路（3.5米）2000米。 | I40: 340.887263 | J40: 340.887263 | M40: 吉财村指〔2024〕913号巩固成果340.887263万
A41: 三、其他项目 | I41: 91.65 | J41: 0 | K41: 0 | L41: 91.65
A42: 35 | B42: 2025年“雨露计划”补贴 | C42: 新建 | D42: 18个乡镇 | E42: 2025-03-01 | F42: 2025-12-01 | G42: 农业农村局 | H42: 对脱贫家庭在校学生进行“雨露计划”补贴，每人每学期补贴1500元。 | I42: 91.65 | J42: 0 | K42: 0 | L42: 91.65 | M42: 本级资金91.65万
